lending/lending_fUSD_20241113
["ID","MTS","AMOUNT","RATE_DAILY","PERIOD"]
[342119349,1731470683175,-324.78718878,0.00012899,2]
[342119350,1731470683198,-1125.0,0.00012999,2]
[342119352,1731470837844,-163.30724814,0.00013213,2]
[342119353,1731470837866,-216.52479252,0.00013213,2]
[342119354,1731470837888,-216.5247925,0.00013218,2]
[342119355,1731470837910,-216.5247925,0.00013223,2]
[342119356,1731470837933,-256.0,0.00013313,2]
[342119357,1731470837957,-250.0,0.00013323,2]
[342119358,1731470837988,-166.41,0.00013356,2]
[342119359,1731470838014,-239.09,0.00013393,3]
[342119360,1731470838038,-162.79,0.00013397,2]
[342119361,1731470838061,-193.95,0.00013425,2]
[342119362,1731470838085,-167.48,0.00013452,2]
[342119363,1731470838108,-250.0,0.00013485,2]
[342119364,1731470838131,-150.0,0.00013485,2]
[342119367,1731470958644,-250.0,0.00013507,2]
[342119368,1731470958675,-1197.09,0.00013507,2]
[342119369,1731470958698,-500.0,0.00013529,2]
[342119370,1731470958721,-200.0,0.00013584,2]
[342119371,1731470958748,-150.0,0.00013586,2]
[342119372,1731470958773,-1000.0,0.00013587,2]
[342119373,1731470958797,-778.89,0.00013641,2]
[342119374,1731470958821,-855.45,0.00013689,2]
[342119375,1731470958844,-200.0,0.00013699,2]
[342119376,1731470958867,-166.85,0.00013713,2]
[342119377,1731470958890,-400.0,0.00013799,2]
[342119378,1731470958913,-400.0,0.00013799,2]
[342119379,1731470958935,-189.99,0.00013799,2]
[342119388,1731471031950,-404.92261432,0.00013952,2]
[342119389,1731471031961,-280.62738568,0.00013952,2]
[342119390,1731471031970,-150.0,0.00014075,2]
[342119391,1731471031979,-150.0,0.00014145,2]
[342119392,1731471031988,-43.592701,0.00014177,2]
[342119393,1731471032002,-378.94039236,0.00014177,2]
[342119394,1731471032083,-57.46690664,0.00014177,2]
[342119395,1731471032092,-413.44888607,0.00014192,2]
[342119396,1731471032498,-553.58111393,0.00014192,2]
[342119397,1731471032507,-432.99,0.00014192,2]
[342119398,1731471032516,-150.0,0.0001458,2]
[342119399,1731471032526,-628.0,0.00014581,2]
[342119400,1731471032535,-1990.0,0.00014581,2]
[342119401,1731471032544,-1922.0,0.00014581,2]
[342119402,1731471032553,-559.0,0.00014581,2]
[342119403,1731471032564,-814.0,0.00014581,2]
[342119404,1731471032573,-1259.0,0.00014581,2]
[342119405,1731471032582,-3745.0,0.00014581,2]
[342119406,1731471032592,-922.0,0.00014581,2]
[342119407,1731471032601,-3486.0,0.00014581,2]
[342119408,1731471032611,-426.41767423,0.00014598,2]
[342119409,1731471032620,-167.03,0.00014645,2]
[342119410,1731471032629,-5931.0,0.00014792,2]
[342119411,1731471032638,-150.0,0.00014792,2]
[342119412,1731471032647,-74.99418344,0.00014792,2]
[342119428,1731471037892,-1016.00581656,0.00014792,2]
[342119429,1731471037901,-150.0,0.00014795,2]
[342119430,1731471037910,-823.47317275,0.00014795,2]
[342119431,1731471037949,-1176.52682725,0.00014795,2]
[342119432,1731471037958,-2000.0,0.00014795,2]
[342119433,1731471037967,-2000.0,0.00014795,2]
[342119434,1731471037977,-2000.0,0.00014795,2]
[342119435,1731471037986,-2000.0,0.00014795,2]
[342119436,1731471037996,-2000.0,0.00014795,2]
[342119437,1731471038009,-2000.0,0.00014795,2]
[342119438,1731471038018,-2000.0,0.00014795,2]
[342119439,1731471038027,-2000.0,0.00014795,2]
[342119440,1731471038038,-2000.0,0.00014795,2]
[342119441,1731471038048,-984.25,0.000148,2]
[342119442,1731471038057,-150.0,0.00014812,2]
[342119443,1731471038069,-150.0,0.00014812,2]
[342119444,1731471038079,-298.465,0.00014812,2]
[342119445,1731471038090,-150.0,0.00014812,2]
[342119446,1731471038101,-1255.0,0.00014812,2]
[342119447,1731471038111,-453.0,0.00014812,2]
[342119448,1731471038121,-150.0,0.00014812,2]
[342119449,1731471038131,-7362.0,0.0001485,2]
[342119450,1731471038141,-150.0,0.00014864,2]
[342119451,1731471038150,-997.096,0.0001488,2]
[342119452,1731471038160,-174.662,0.0001488,2]
[342119453,1731471038169,-216.6405,0.0001489,2]
[342119454,1731471038179,-324.4254,0.0001489,2]
[342119455,1731471038188,-659.5574,0.0001489,2]
[342119456,1731471038197,-655.0086,0.0001489,2]
[342119457,1731471038206,-162.62348464,0.00014899,2]
[342119458,1731471038215,-289.9262,0.000149,2]
[342119459,1731471038224,-294.8712,0.000149,2]
[342119460,1731471038233,-2720.0838,0.000149,2]
[342119461,1731471038243,-887.539,0.000149,2]
[342119462,1731471038252,-5000.0,0.000149,2]
[342119463,1731471038261,-1475.6878,0.000149,2]
[342119464,1731471038270,-562.4397,0.000149,2]
[342119465,1731471038280,-168.59620298,0.000149,2]
[342119466,1731471038288,-382.32514846,0.000149,2]
[342119467,1731471038298,-1000.0,0.00014957,2]
[342119468,1731471038307,-500.0,0.00014973,2]
[342119469,1731471038319,-500.0,0.00014973,2]
[342119470,1731471038328,-150.0,0.00014973,2]
[342119471,1731471038337,-256.0,0.00014977,2]
[342119472,1731471038347,-200.0,0.0001498,2]
[342119473,1731471038356,-500.0,0.00014986,2]
[342119474,1731471038365,-6633.27299118,0.00014989,2]
[342119475,1731471038375,-27705.97254907,0.0001499,2]
[342119480,1731471038414,-300.0,0.0001499,2]
[342119483,1731471038426,-221994.02745093,0.0001499,2]
[342119485,1731471038435,-500.0,0.00014999,2]
[342119487,1731471038444,-210.08563315,0.00014999,2]
[342119489,1731471038453,-500.0,0.00014999,2]
[342119491,1731471038462,-500.0,0.00014999,2]
[342119493,1731471038471,-500.0,0.00014999,2]
[342119495,1731471038480,-500.0,0.00014999,2]
[342119497,1731471038489,-500.0,0.00014999,2]
[342119499,1731471038498,-500.0,0.00014999,2]
[342119501,1731471038507,-465.0,0.00014999,2]
[342119503,1731471038516,-500.0,0.00014999,2]
[342119505,1731471038525,-10000.0,0.00014999,2]
[342119507,1731471038535,-5300.0,0.00014999,2]
[342119509,1731471038544,-10000.0,0.00014999,2]
[342119511,1731471038553,-733165.24192139,0.00015,2]
[342119513,1731471038564,-9215.84013149,0.00015,2]
[342119515,1731471038573,-3686163.54952616,0.00015,2]
[342119526,1731471038659,-68478.71378056,0.00015,2]
[342119532,1731471038712,-26202.49619954,0.00015,2]
[342119546,1731471039695,-636.12,0.00015,2]
[342119547,1731471039706,-811.21,0.00015,2]
[342119548,1731471040488,-1199.40697224,0.00015,2]
[342119549,1731471040499,-671.11125443,0.00015,2]
[342119550,1731471040615,-395.92311807,0.00015,2]
[342119551,1731471040668,-1751.11132018,0.00015,2]
[342119552,1731471040719,-314.32329999,0.00015,2]
[342119553,1731471040731,-2036.5,0.00015,2]
[342119555,1731471042947,-563.8784653,0.00015,2]
[342119557,1731471042976,-1746.30531089,0.00015,2]
[342119558,1731471043116,-998.53293826,0.00015,2]
[342119559,1731471043127,-3860.290742,0.00015,2]
[342119560,1731471043226,-542.78684956,0.00015,2]
[342119561,1731471043295,-2762.47997146,0.00015,2]
[342119611,1731471046163,-2539.3647481,0.00015,2]
[342119620,1731471046234,-703.0210584,0.00015,2]
[342119633,1731471046323,-1000.0,0.00014568,2]
[342119635,1731471046334,-4396.35527972,0.00015,2]
[342119646,1731471076799,1450.0,0.00012,2]
[342119647,1731471190105,169.96,8.219e-05,2]
[342119648,1731471196797,2000.0,0.00025496,120]
[342119649,1731471197493,2000.0,0.00026445,120]
[342119650,1731471286115,190.364,0.00012066,2]
[342119651,1731471286141,445.046,0.00012066,2]
[342119652,1731471303771,800.0,0.00026986,120]
[342119654,1731471371312,300.0,0.00013698,120]
[342119655,1731471371445,300.0,0.00013799,120]
[342119656,1731471371705,300.0,0.00013999,120]
[342119657,1731471371885,300.0,0.00014246,120]
[342119658,1731471372000,300.0,0.00014499,120]
[342119659,1731471372604,300.0,0.00013698,120]
[342119660,1731471372858,300.0,0.00013799,120]
[342119661,1731471373149,300.0,0.00013999,120]
[342119662,1731471373730,300.0,0.00014246,120]
[342119663,1731471373844,300.0,0.00014499,120]
[342119664,1731471374896,300.0,0.00013698,120]
[342119665,1731471374984,218.0,0.00013799,120]
[342119666,1731471392655,150.0,0.00027,60]
[342119667,1731471393451,150.0,0.00027,60]
[342119668,1731471393936,150.0,0.00027,60]
[342119669,1731471394397,150.0,0.00027,60]
[342119670,1731471394685,150.0,0.00027,60]
[342119671,1731471395330,150.0,0.00027,60]
[342119672,1731471396919,150.0,0.00027,60]
[342119673,1731471397462,150.0,0.00027,60]
[342119674,1731471397660,150.0,0.00027,60]
[342119675,1731471397981,150.0,0.00027,60]
[342119676,1731471412073,150.0,0.00027,60]
[342119677,1731471413086,150.0,0.00027,60]
[342119678,1731471413438,150.0,0.00027,60]
[342119679,1731471413794,150.0,0.00027,60]
[342119680,1731471414208,150.0,0.00027,60]
[342119681,1731471414653,150.0,0.00027,60]
[342119682,1731471415067,150.0,0.00027,60]
[342119683,1731471415486,150.0,0.00027,60]
[342119684,1731471429578,222.222222,0.00027,60]
[342119685,1731471430007,222.222222,0.00027,60]
[342119686,1731471430228,222.222222,0.00027,60]
[342119687,1731471430752,222.222222,0.00027,60]
[342119688,1731471431200,222.222222,0.00027,60]
[342119689,1731471431422,375.82348921,0.00013698,120]
[342119690,1731471431515,222.222222,0.00027,60]
[342119691,1731471432493,222.222222,0.00027,60]
[342119692,1731471432792,222.222222,0.00027,60]
[342119693,1731471433089,222.222222,0.00027,60]
[342119694,1731471433455,222.222222,0.00027,60]
[342119695,1731471450852,222.222222,0.00027,60]
[342119696,1731471451117,222.222222,0.00027,60]
[342119697,1731471451681,222.222222,0.00027,60]
[342119698,1731471451848,222.222222,0.00027,60]
[342119699,1731471452202,222.222222,0.00027,60]
[342119700,1731471452777,222.222222,0.00027,60]
[342119701,1731471452926,222.222222,0.00027,60]
[342119702,1731471453350,222.222222,0.00027,60]
[342119703,1731471453594,222.222222,0.00027,60]
[342119704,1731471454062,222.222222,0.00027,60]
[342119705,1731471457060,222.222222,0.00027,60]
[342119706,1731471461661,222.222222,0.00027,60]
[342119707,1731471461926,222.222222,0.00027,60]
[342119708,1731471462218,222.222222,0.00027,60]
[342119709,1731471462399,222.222222,0.00027,60]
[342119710,1731471462699,222.222222,0.00027,60]
[342119711,1731471463118,222.222222,0.00027,60]
[342119712,1731471463563,222.222222,0.00027,60]
[342119713,1731471463854,222.222222,0.00027,60]
[342119714,1731471464598,222.222222,0.00027,60]
[342119715,1731471499795,333.333333,0.00027,60]
[342119716,1731471500238,333.333333,0.00027,60]
[342119717,1731471500673,333.333333,0.00027,60]
[342119718,1731471501175,333.333333,0.00027,60]
[342119719,1731471501815,333.333333,0.00027,60]
[342119720,1731471502147,333.333333,0.00027,60]
[342119721,1731471538596,150.0,0.00027,60]
[342119722,1731471539189,150.0,0.00027,60]
[342119723,1731471539456,150.0,0.00027,60]
[342119724,1731471539723,150.0,0.00027,60]
[342119725,1731471540161,150.0,0.00027,60]
[342119726,1731471540490,150.0,0.00027,60]
[342119727,1731471540977,150.0,0.00027,60]
[342119728,1731471541270,150.0,0.00027,60]
[342119729,1731471541758,150.0,0.00027,60]
[342119730,1731471551501,300.0,0.00013698,120]
[342119732,1731471574846,171.05250754,0.00027,60]
[342119733,1731471603163,1000.0,0.00027,60]
[342119734,1731471603254,434.5726427,0.00027,120]
[342119735,1731471614450,967.64,0.00027,60]
[342119736,1731471626356,967.64,0.00027,60]
[342119737,1731471635788,967.64,0.00027,60]
[342119738,1731471657009,967.64,0.00027,60]
[342119739,1731471662461,967.64,0.00027,60]
[342119740,1731471670932,1782.73,0.00027,60]
[342119741,1731471678938,966.71,0.00027,60]
[342119742,1731471691518,967.64,0.00027,60]
[342119743,1731471699601,22448.0,0.0002699,60]
[342119744,1731471700514,967.64,0.00027,60]
[342119745,1731471718975,967.64,0.00027,60]
[342119746,1731471724800,967.64,0.00027,60]
[342119747,1731471732241,967.64,0.00027,60]
[342119748,1731471741941,1186.53,0.00027,60]
[342119749,1731471774557,967.64,0.00027,60]
[342119750,1731471780359,967.64,0.00027,60]
[342119751,1731471786726,967.64,0.00027,60]
[342119752,1731471793378,967.64,0.00027,60]
[342119753,1731471796159,500.0,0.00025599,120]
[342119754,1731471796534,500.0,0.00026599,120]
[342119755,1731471798895,967.64,0.00027,60]
[342119756,1731471802613,2000.0,0.00025599,120]
[342119757,1731471803136,2000.0,0.00026599,120]
[342119758,1731471803730,214.0,0.0002,120]
[342119759,1731471804722,967.64,0.00027,60]
[342119760,1731471808769,500.0,0.00023599,120]
[342119761,1731471809032,508.581627,0.00025099,120]
[342119763,1731471811704,967.64,0.00027,60]
[342119764,1731471815665,500.0,0.00025111,120]
[342119765,1731471816776,500.0,0.00025867,120]
[342119766,1731471816932,500.0,0.00026623,120]
[342119767,1731471819335,967.64,0.00027,60]
[342119768,1731471824704,967.64,0.00027,60]
[342119769,1731471830994,449.05,0.00027,60]
[342119770,1731471836373,200.0,0.00025331,120]
[342119771,1731471836762,200.0,0.00026197,120]
[342119772,1731471838324,967.64,0.00027,60]
[342119773,1731471843859,967.64,0.00027,60]
[342119774,1731471851256,967.64,0.00027,60]
[342119775,1731471864712,169.96,8.219e-05,2]
[342119776,1731471926248,1019.20511913,0.00025,60]
[342119777,1731471940935,1517.05,0.00027,60]
[342119780,1731472061414,603.63,0.00011459,2]
[342119782,1731472120041,675.28550814,0.00027,120]
[342119783,1731472121035,508.98546003,0.00027,120]
[342119785,1731472127139,308.06630739,0.00027,120]
[342119796,1731472221643,409.9738324,0.00027,60]
[342119803,1731472234714,-150.0,0.00012379,2]
[342119804,1731472234724,-74756.21928946,0.0001238,2]
[342119805,1731472234778,-461.1135249,0.0001238,2]
[342119806,1731472234859,-481.55611683,0.0001238,2]
[342119807,1731472234940,-1574.5,0.0001238,2]
[342119811,1731472238192,-2827.97682444,0.0001238,2]
[342119812,1731472238203,-1530.04310255,0.0001238,2]
[342119813,1731472238302,-687.76712287,0.0001238,2]
[342119814,1731472238313,-5772.96119858,0.0001238,2]
[342119815,1731472238397,-34027.19999997,0.0001238,2]
[342119816,1731472238409,-8214.37281905,0.0001238,2]
[342119817,1731472238419,-365.0,0.00012741,2]
[342119818,1731472238427,-189.86757784,0.00012799,2]
[342119819,1731472238436,-27889.233562,0.000129,3]
[342119820,1731472238447,-300.0,0.00012999,2]
[342119821,1731472238456,-300.0,0.00012999,2]
[342119822,1731472238472,-300.0,0.00012999,2]
[342119823,1731472238482,-300.0,0.00012999,2]
[342119824,1731472238491,-300.0,0.00012999,2]
[342119825,1731472238499,-300.0,0.00012999,2]
[342119826,1731472238508,-300.0,0.00012999,2]
[342119827,1731472238517,-300.0,0.00012999,2]
[342119828,1731472238526,-199.1047488,0.00012999,2]
[342119829,1731472238535,-500.0,0.00012999,2]
[342119830,1731472238545,-500.0,0.00012999,2]
[342119831,1731472238554,-424.60145529,0.00012999,2]
[342119832,1731472238563,-500.0,0.00012999,2]
[342119833,1731472238571,-500.0,0.00012999,2]
[342119834,1731472238581,-241.69999999,0.00012999,2]
[342119836,1731472238590,-867135.9137036,0.00013,2]
[342119838,1731472238599,-168.82078596,0.00013022,2]
[342119839,1731472238608,-192.66388584,0.00013122,2]
[342119840,1731472238617,-300.0,0.00013122,2]
[342119841,1731472238626,-300.0,0.00013122,2]
[342119842,1731472238635,-300.0,0.00013122,2]
[342119843,1731472238644,-300.0,0.00013122,2]
[342119844,1731472238653,-304.91169602,0.00013122,2]
[342119845,1731472238662,-300.0,0.00013122,2]
[342119846,1731472238672,-300.0,0.00013122,2]
[342119847,1731472238681,-300.0,0.00013299,2]
[342119848,1731472238690,-300.0,0.00013299,2]
[342119849,1731472238700,-300.0,0.00013299,2]
[342119850,1731472238709,-300.0,0.00013299,2]
[342119851,1731472238724,-300.0,0.00013299,2]
[342119852,1731472238733,-158.34939055,0.00013299,2]
[342119853,1731472238743,-250.0,0.00013309,2]
[342119854,1731472238752,-250.0,0.00013313,2]
[342119855,1731472238761,-6004.96,0.00013313,2]
[342119856,1731472238770,-193.93,0.00013348,2]
[342119857,1731472238779,-200.0,0.00013465,2]
[342119858,1731472238788,-255.0,0.00013468,2]
[342119859,1731472238797,-500.0,0.00013488,2]
[342119860,1731472238806,-250.0,0.00013488,2]
[342119861,1731472238815,-150.0,0.00013532,2]
[342119862,1731472238825,-162.79,0.00013533,2]
[342119863,1731472238834,-499.12,0.0001354,2]
[342119864,1731472238843,-1000.0,0.00013556,2]
[342119865,1731472238853,-646.4,0.0001357,2]
[342119866,1731472238862,-168.85,0.00013593,2]
[342119867,1731472238871,-150.0,0.00013606,2]
[342119868,1731472238880,-1398.39,0.00013621,2]
[342119869,1731472238889,-150.0,0.00013647,2]
[342119870,1731472238898,-215.451439,0.00013698,2]
[342119871,1731472238907,-800.0,0.00013699,2]
[342119872,1731472238915,-800.0,0.00013699,2]
[342119873,1731472238925,-800.0,0.00013699,2]
[342119874,1731472238934,-603.63,0.00013723,2]
[342119875,1731472238942,-1500.0,0.00014,2]
[342119876,1731472238951,-166.94,0.00014332,2]
[342119877,1731472238961,-1980.15537468,0.000145,3]
[342119878,1731472238975,-201.33,0.0001463,2]
[342119879,1731472238985,-433.0,0.00014657,2]
[342119880,1731472238994,-417.53397268,0.00014733,2]
[342119881,1731472239003,-150.0,0.00014772,2]
[342119882,1731472239012,-150.0,0.00014772,2]
[342119883,1731472239021,-500.0,0.00014879,2]
[342119884,1731472239030,-200.0,0.00014879,2]
[342119885,1731472239039,-500.0,0.00014879,2]
[342119886,1731472239048,-500.0,0.0001488,2]
[342119887,1731472239057,-200.0,0.0001488,2]
[342119888,1731472239066,-500.0,0.0001488,2]
[342119889,1731472239076,-500.0,0.0001488,2]
[342119890,1731472239085,-500.0,0.0001488,2]
[342119891,1731472239093,-500.0,0.0001488,2]
[342119892,1731472239102,-500.0,0.0001488,2]
[342119893,1731472239112,-200.0,0.0001488,2]
[342119894,1731472239121,-200.0,0.0001488,2]
[342119895,1731472239130,-1038.9067,0.0001489,2]
[342119896,1731472239139,-851.358,0.00014893,2]
[342119897,1731472239149,-174.663,0.00014893,2]
[342119898,1731472239158,-299.31,0.000149,2]
[342119899,1731472239167,-5248.44977742,0.000149,2]
[342119900,1731472239177,-512.109,0.00014912,2]
[342119901,1731472239186,-1185.781,0.00014912,2]
[342119902,1731472239195,-581.587,0.00014912,2]
[342119903,1731472239205,-5931.0,0.00014912,2]
[342119904,1731472239216,-151.694,0.00014912,2]
[342119905,1731472239229,-631.0,0.00014912,2]
[342119906,1731472239238,-13631.0,0.00014912,2]
[342119907,1731472239247,-150.0,0.00014945,2]
[342119908,1731472239256,-150.0,0.00014972,2]
[342119909,1731472239266,-331.12706968,0.00014973,2]
[342119910,1731472239275,-500.0,0.00014973,2]
[342119911,1731472239284,-500.0,0.00014973,2]
[342119912,1731472239293,-500.0,0.00014973,2]
[342119913,1731472239302,-1161.52811169,0.00014975,2]
[342119914,1731472239311,-200.0,0.0001499,2]
[342119915,1731472239320,-150.0,0.00014998,2]
[342119916,1731472239331,-150.0,0.00014998,2]
[342119917,1731472239341,-150.0,0.00014998,2]
[342119918,1731472239350,-150.0,0.00014998,2]
[342119919,1731472239360,-150.0,0.00014998,2]
[342119920,1731472239371,-150.0,0.00014998,2]
[342119921,1731472239385,-150.0,0.00014998,2]
[342119922,1731472239394,-150.0,0.00014998,2]
[342119923,1731472239404,-150.0,0.00014998,2]
[342119924,1731472239414,-150.0,0.00014998,2]
[342119925,1731472239423,-150.0,0.00014998,2]
[342119926,1731472239432,-150.0,0.00014998,2]
[342119927,1731472239441,-150.0,0.00014998,2]
[342119928,1731472239452,-150.0,0.00014998,2]
[342119929,1731472239462,-150.0,0.00014998,2]
[342119930,1731472239477,-150.0,0.00014998,2]
[342119931,1731472239486,-150.0,0.00014998,2]
[342119932,1731472239495,-150.0,0.00014998,2]
[342119933,1731472239504,-150.0,0.00014998,2]
[342119934,1731472239513,-257.1090525,0.00014999,2]
[342119935,1731472239523,-500.0,0.00014999,2]
[342119936,1731472239534,-500.0,0.00014999,2]
[342119937,1731472239544,-252.52568995,0.00014999,2]
[342119938,1731472239553,-500.0,0.00014999,2]
[342119939,1731472239563,-1375.0,0.00014999,2]
[342119940,1731472239572,-20000.0,0.00014999,2]
[342119941,1731472239582,-2084.85411869,0.00014999,2]
[342119942,1731472239593,-10000.0,0.00014999,2]
[342119943,1731472239602,-10000.0,0.00014999,2]
[342119944,1731472239611,-5000.0,0.00014999,2]
[342119945,1731472239620,-1224.94,0.00014999,2]
[342119946,1731472239630,-490628.02166824,0.00015,2]
[342119947,1731472239639,-3163179.76006365,0.00015,2]
[342119948,1731472239653,-2662.65999999,0.00015,2]
[342119949,1731472239745,-379.15678025,0.00015,2]
[342119950,1731472239799,-829.05197242,0.00015,2]
[342119953,1731472241255,-528.55,0.00015,2]
[342119954,1731472241266,-5850.0000025,0.00015,2]
[342119955,1731472241277,-2092.5,0.00015,2]
[342119956,1731472241288,-2043.6,0.00015,2]
[342119958,1731472243526,-847.58446831,0.00014912,2]
[342119959,1731472243569,-311.41553169,0.00014912,2]
[342119960,1731472243579,-1760.84905264,0.00015,2]
[342119961,1731472243588,-6593.99359219,0.00015,2]
[342119962,1731472243704,-6337.84557881,0.00015,2]
[342119963,1731472243715,-55465.04310106,0.00015,2]
[342119965,1731472246248,-1993.1859692,0.00015,2]
[342119966,1731472246305,-754.85459043,0.00015,2]
[342119967,1731472246350,-313.99641647,0.00015,2]
[342119968,1731472246494,-38940.75834865,0.00015,2]
[342119970,1731472395596,500.0,0.00025503,120]
[342119971,1731472395970,500.0,0.00026771,120]
[342119972,1731472402172,2000.0,0.00026044,120]
[342119973,1731472410367,500.0,0.00025972,120]
[342119974,1731472410674,500.0,0.00026999,120]
[342119975,1731472449347,800.0,0.00026986,120]
[342119976,1731472511045,800.0,0.00026986,120]
[342119977,1731472572741,800.0,0.00026986,120]
[342119978,1731472629432,800.0,0.00026986,120]
[342119979,1731472665782,1208.5,0.00027,60]
[342119982,1731472729934,104000.55,0.0002698,60]
[342119983,1731472735666,-317.0,0.00012999,2]
[342119984,1731472735688,-628.0,0.00012999,2]
[342119985,1731472750358,800.0,0.00026986,120]
[342119987,1731472799005,558.2,0.00012003,2]
[342119988,1731472808864,800.0,0.00026986,120]
[342119989,1731472873015,800.0,0.00026986,120]
[342119990,1731472904412,1450.0,0.00012,2]
[342119991,1731472924009,800.0,0.00026986,120]
[342119992,1731472989313,800.0,0.00026986,120]
[342119993,1731472997832,2000.0,0.00025072,120]
[342119994,1731472998250,2000.0,0.00026306,120]
[342119995,1731473005304,500.0,0.00025182,120]
[342119996,1731473005464,500.0,0.00026135,120]
[342119997,1731473005900,500.0,0.00026999,120]
[342119999,1731473017849,200.0,0.00024671,120]
[342120000,1731473018295,200.0,0.00025771,120]
[342120001,1731473018891,200.0,0.00026871,120]
[342120002,1731473020959,1009.63017037,0.00027,60]
[342120006,1731473173917,-21800.0,0.00014463,7]
[342120013,1731473319242,-800.0,0.00027014,120]
[342120014,1731473319275,-800.0,0.00027014,120]
[342120015,1731473319313,-800.0,0.00027014,120]
[342120016,1731473319347,-800.0,0.00027014,120]
[342120017,1731473319380,-800.0,0.00027014,120]
[342120018,1731473319413,-800.0,0.00027014,120]
[342120019,1731473319447,-200.0,0.00027014,120]
[342120035,1731473432269,-340.62904396,0.00013699,2]
[342120036,1731473432299,-0.28979193,0.00013699,2]
[342120037,1731473432326,-459.08116411,0.00013699,2]
[342120038,1731473432335,-448.27765098,0.00013699,2]
[342120039,1731473432346,-351.72234902,0.00013699,2]
[342120040,1731473432355,-111.24548041,0.00013699,2]
[342120041,1731473432366,-181.87451959,0.00013699,2]
[342120042,1731473432376,-800.0,0.00013699,2]
[342120043,1731473432390,-800.0,0.00013699,2]
[342120044,1731473432399,-250.0,0.00013701,2]
[342120045,1731473432409,-250.0,0.00013757,2]
[342120046,1731473432419,-150.0,0.00013759,2]
[342120047,1731473432428,-1000.0,0.00013777,2]
[342120048,1731473432438,-250.0,0.00013781,2]
[342120049,1731473432447,-695.0,0.00013876,2]
[342120050,1731473432457,-150.0,0.00013898,2]
[342120051,1731473432466,-200.0,0.00013967,2]
[342120052,1731473432476,-1500.0,0.00014,2]
[342120053,1731473432485,-249.56,0.00014127,2]
[342120054,1731473432494,-999.99,0.00014127,2]
[342120055,1731473432504,-282.88,0.00014128,2]
[342120064,1731473432855,-166.94,0.00014209,2]
[342120065,1731473432864,-558.2,0.00014267,2]
[342120066,1731473432873,-967.64,0.000143,2]
[342120067,1731473432887,-967.64,0.000143,2]
[342120068,1731473432896,-967.64,0.000143,2]
[342120069,1731473432905,-800.0,0.00014466,2]
[342120070,1731473432915,-166.41,0.00014507,2]
[342120071,1731473432924,-967.64,0.000146,2]
[342120072,1731473432933,-191.755,0.0001463,2]
[342120073,1731473432942,-417.53397268,0.00014658,2]
[342120074,1731473432952,-150.0,0.00014789,2]
[342120075,1731473432961,-967.64,0.000148,2]